{"text_format":"3","workbook":"xlsx","n_sheets":1,"sheets":["Πρόγραμμα βαρδιών"],"not_rendered":{"defined_names":2},"read":"whole","date_system":"1900"}

{"sheet":"Πρόγραμμα βαρδιών","index":0,"n_rows":59,"n_cols":13,"rows_kept":59,"merged":[[0,1,0,5],[1,2,1,4],[2,2,2,4],[2,10,2,12]]}
[null,"Πρόγραμμα βαρδιών"]
[null,"Για την εβδομάδα: "]
[null,"Τμήμα: "]
[]
[null,"ΔΕΥΤΕΡΑ","7:00 π.μ.","8:00 π.μ.","9:00 π.μ.","10:00 π.μ.","11:00 π.μ.","12:00 μ.μ.","1:00 μ.μ.","2:00 μ.μ","3:00 μ.μ.","Ασθένεια;","ΣΥΝΟΛΟ"]
[null,"Μαρία Φ.","διευθύντρια","διευθύντρια","διευθύντρια","διευθύντρια","διευθύντρια","διευθύντρια","διευθύντρια","διευθύντρια","διευθύντρια",null,{"$f":"COUNTIF(Table1[[#This Row],[7:00 π.μ.]:[3:00 μ.μ.]],\"*\")","v":9}]
[null,"Θωμάς Η.",null,"ταμίας","ταμίας","ταμίας","ταμίας",{"$nulls":5},{"$f":"COUNTIF(Table1[[#This Row],[7:00 π.μ.]:[3:00 μ.μ.]],\"*\")","v":4}]
[null,"Παναγιώτης Σ.",null,"γραφείο υποδοχής","γραφείο υποδοχής","γραφείο υποδοχής","γραφείο υποδοχής ","γραφείο υποδοχής","γραφείο υποδοχής","γραφείο υποδοχής",null,null,{"$f":"COUNTIF(Table1[[#This Row],[7:00 π.μ.]:[3:00 μ.μ.]],\"*\")","v":7}]
[null,"Γιάννης Μ.",null,"γραφείο υποδοχής","γραφείο υποδοχής","γραφείο υποδοχής","γραφείο υποδοχής ","γραφείο υποδοχής","γραφείο υποδοχής","γραφείο υποδοχής",null,null,{"$f":"COUNTIF(Table1[[#This Row],[7:00 π.μ.]:[3:00 μ.μ.]],\"*\")","v":7}]
[null,"Σταύρος Π.",{"$nulls":9},"Ασθένεια",{"$f":"COUNTIF(Table1[[#This Row],[7:00 π.μ.]:[3:00 μ.μ.]],\"*\")","v":0}]
[null,"Ευαγγελία Α.",{"$nulls":5},"ταμίας","ταμίας","ταμίας","ταμίας",null,{"$f":"COUNTIF(Table1[[#This Row],[7:00 π.μ.]:[3:00 μ.μ.]],\"*\")","v":4}]
[]
[null,"ΤΡΙΤΗ","7:00 π.μ.","8:00 π.μ.","9:00 π.μ.","10:00 π.μ.","11:00 π.μ.","12:00 μ.μ.","1:00 μ.μ.","2:00 μ.μ","3:00 μ.μ.","Ασθένεια;","ΣΥΝΟΛΟ"]
[null,"Μαρία Φ.","διευθύντρια","διευθύντρια","διευθύντρια","διευθύντρια","διευθύντρια","διευθύντρια","διευθύντρια","διευθύντρια","διευθύντρια",null,{"$f":"COUNTIF(Table2[[#This Row],[7:00 π.μ.]:[3:00 μ.μ.]],\"*\")","v":9}]
[null,"Θωμάς Η.",null,"ταμίας","ταμίας","ταμίας","ταμίας",{"$nulls":5},{"$f":"COUNTIF(Table2[[#This Row],[7:00 π.μ.]:[3:00 μ.μ.]],\"*\")","v":4}]
[null,"Παναγιώτης Σ.",null,"γραφείο υποδοχής","γραφείο υποδοχής","γραφείο υποδοχής","γραφείο υποδοχής ","γραφείο υποδοχής","γραφείο υποδοχής","γραφείο υποδοχής",null,null,{"$f":"COUNTIF(Table2[[#This Row],[7:00 π.μ.]:[3:00 μ.μ.]],\"*\")","v":7}]
[null,"Γιάννης Μ.",null,"γραφείο υποδοχής","γραφείο υποδοχής","γραφείο υποδοχής","γραφείο υποδοχής ","γραφείο υποδοχής","γραφείο υποδοχής","γραφείο υποδοχής",null,null,{"$f":"COUNTIF(Table2[[#This Row],[7:00 π.μ.]:[3:00 μ.μ.]],\"*\")","v":7}]
[null,"Σταύρος Π.",{"$nulls":9},"Ασθένεια",{"$f":"COUNTIF(Table2[[#This Row],[7:00 π.μ.]:[3:00 μ.μ.]],\"*\")","v":0}]
[null,"Ευαγγελία Α.",{"$nulls":5},"ταμίας","ταμίας","ταμίας","ταμίας",null,{"$f":"COUNTIF(Table2[[#This Row],[7:00 π.μ.]:[3:00 μ.μ.]],\"*\")","v":4}]
[]
[null,"ΤΕΤΑΡΤΗ","7:00 π.μ.","8:00 π.μ.","9:00 π.μ.","10:00 π.μ.","11:00 π.μ.","12:00 μ.μ.","1:00 μ.μ.","2:00 μ.μ","3:00 μ.μ.","Ασθένεια;","ΣΥΝΟΛΟ"]
[null,"Μαρία Φ.","διευθύντρια","διευθύντρια","διευθύντρια","διευθύντρια","διευθύντρια","διευθύντρια","διευθύντρια","διευθύντρια","διευθύντρια",null,{"$f":"COUNTIF(Table3[[#This Row],[7:00 π.μ.]:[3:00 μ.μ.]],\"*\")","v":9}]
[null,"Θωμάς Η.",null,"ταμίας","ταμίας","ταμίας","ταμίας",{"$nulls":5},{"$f":"COUNTIF(Table3[[#This Row],[7:00 π.μ.]:[3:00 μ.μ.]],\"*\")","v":4}]
[null,"Παναγιώτης Σ.",null,"γραφείο υποδοχής","γραφείο υποδοχής","γραφείο υποδοχής","γραφείο υποδοχής ","γραφείο υποδοχής","γραφείο υποδοχής","γραφείο υποδοχής",null,null,{"$f":"COUNTIF(Table3[[#This Row],[7:00 π.μ.]:[3:00 μ.μ.]],\"*\")","v":7}]
[null,"Γιάννης Μ.",null,"γραφείο υποδοχής","γραφείο υποδοχής","γραφείο υποδοχής","γραφείο υποδοχής ","γραφείο υποδοχής","γραφείο υποδοχής","γραφείο υποδοχής",null,null,{"$f":"COUNTIF(Table3[[#This Row],[7:00 π.μ.]:[3:00 μ.μ.]],\"*\")","v":7}]
[null,"Σταύρος Π.",{"$nulls":9},"Ασθένεια",{"$f":"COUNTIF(Table3[[#This Row],[7:00 π.μ.]:[3:00 μ.μ.]],\"*\")","v":0}]
[null,"Ευαγγελία Α.",{"$nulls":5},"ταμίας","ταμίας","ταμίας","ταμίας",null,{"$f":"COUNTIF(Table3[[#This Row],[7:00 π.μ.]:[3:00 μ.μ.]],\"*\")","v":4}]
[]
[null,"ΠΕΜΠΤΗ","7:00 π.μ.","8:00 π.μ.","9:00 π.μ.","10:00 π.μ.","11:00 π.μ.","12:00 μ.μ.","1:00 μ.μ.","2:00 μ.μ","3:00 μ.μ.","Ασθένεια;","ΣΥΝΟΛΟ"]
[null,"Μαρία Φ.","διευθύντρια","διευθύντρια","διευθύντρια","διευθύντρια","διευθύντρια","διευθύντρια","διευθύντρια","διευθύντρια","διευθύντρια",null,{"$f":"COUNTIF(Table4[[#This Row],[7:00 π.μ.]:[3:00 μ.μ.]],\"*\")","v":9}]
[null,"Θωμάς Η.",null,"ταμίας","ταμίας","ταμίας","ταμίας",{"$nulls":5},{"$f":"COUNTIF(Table4[[#This Row],[7:00 π.μ.]:[3:00 μ.μ.]],\"*\")","v":4}]
[null,"Παναγιώτης Σ.",null,"γραφείο υποδοχής","γραφείο υποδοχής","γραφείο υποδοχής","γραφείο υποδοχής ","γραφείο υποδοχής","γραφείο υποδοχής","γραφείο υποδοχής",null,null,{"$f":"COUNTIF(Table4[[#This Row],[7:00 π.μ.]:[3:00 μ.μ.]],\"*\")","v":7}]
[null,"Γιάννης Μ.",null,"γραφείο υποδοχής","γραφείο υποδοχής","γραφείο υποδοχής","γραφείο υποδοχής ","γραφείο υποδοχής","γραφείο υποδοχής","γραφείο υποδοχής",null,null,{"$f":"COUNTIF(Table4[[#This Row],[7:00 π.μ.]:[3:00 μ.μ.]],\"*\")","v":7}]
[null,"Σταύρος Π.",{"$nulls":9},"Ασθένεια",{"$f":"COUNTIF(Table4[[#This Row],[7:00 π.μ.]:[3:00 μ.μ.]],\"*\")","v":0}]
[null,"Ευαγγελία Α.",{"$nulls":5},"ταμίας","ταμίας","ταμίας","ταμίας",null,{"$f":"COUNTIF(Table4[[#This Row],[7:00 π.μ.]:[3:00 μ.μ.]],\"*\")","v":4}]
[]
[null,"ΠΑΡΑΣΚΕΥΗ","7:00 π.μ.","8:00 π.μ.","9:00 π.μ.","10:00 π.μ.","11:00 π.μ.","12:00 μ.μ.","1:00 μ.μ.","2:00 μ.μ","3:00 μ.μ.","Ασθένεια;","ΣΥΝΟΛΟ"]
[null,"Μαρία Φ.","διευθύντρια","διευθύντρια","διευθύντρια","διευθύντρια","διευθύντρια","διευθύντρια","διευθύντρια","διευθύντρια","διευθύντρια",null,{"$f":"COUNTIF(Table5[[#This Row],[7:00 π.μ.]:[3:00 μ.μ.]],\"*\")","v":9}]
[null,"Θωμάς Η.",null,"ταμίας","ταμίας","ταμίας","ταμίας",{"$nulls":5},{"$f":"COUNTIF(Table5[[#This Row],[7:00 π.μ.]:[3:00 μ.μ.]],\"*\")","v":4}]
[null,"Παναγιώτης Σ.",null,"γραφείο υποδοχής","γραφείο υποδοχής","γραφείο υποδοχής","γραφείο υποδοχής ","γραφείο υποδοχής","γραφείο υποδοχής","γραφείο υποδοχής",null,null,{"$f":"COUNTIF(Table5[[#This Row],[7:00 π.μ.]:[3:00 μ.μ.]],\"*\")","v":7}]
[null,"Γιάννης Μ.",null,"γραφείο υποδοχής","γραφείο υποδοχής","γραφείο υποδοχής","γραφείο υποδοχής ","γραφείο υποδοχής","γραφείο υποδοχής","γραφείο υποδοχής",null,null,{"$f":"COUNTIF(Table5[[#This Row],[7:00 π.μ.]:[3:00 μ.μ.]],\"*\")","v":7}]
[null,"Σταύρος Π.",{"$nulls":9},"Ασθένεια",{"$f":"COUNTIF(Table5[[#This Row],[7:00 π.μ.]:[3:00 μ.μ.]],\"*\")","v":0}]
[null,"Ευαγγελία Α.",{"$nulls":5},"ταμίας","ταμίας","ταμίας","ταμίας",null,{"$f":"COUNTIF(Table5[[#This Row],[7:00 π.μ.]:[3:00 μ.μ.]],\"*\")","v":4}]
[]
[null,"ΣΑΒΒΑΤΟ","7:00 π.μ.","8:00 π.μ.","9:00 π.μ.","10:00 π.μ.","11:00 π.μ.","12:00 μ.μ.","1:00 μ.μ.","2:00 μ.μ","3:00 μ.μ.","Ασθένεια;","ΣΥΝΟΛΟ"]
[null,"Μαρία Φ.","διευθύντρια","διευθύντρια","διευθύντρια","διευθύντρια","διευθύντρια","διευθύντρια","διευθύντρια","διευθύντρια","διευθύντρια",null,{"$f":"COUNTIF(Table6[[#This Row],[7:00 π.μ.]:[3:00 μ.μ.]],\"*\")","v":9}]
[null,"Θωμάς Η.",null,"ταμίας","ταμίας","ταμίας","ταμίας",{"$nulls":5},{"$f":"COUNTIF(Table6[[#This Row],[7:00 π.μ.]:[3:00 μ.μ.]],\"*\")","v":4}]
[null,"Παναγιώτης Σ.",null,"γραφείο υποδοχής","γραφείο υποδοχής","γραφείο υποδοχής","γραφείο υποδοχής ","γραφείο υποδοχής","γραφείο υποδοχής","γραφείο υποδοχής",null,null,{"$f":"COUNTIF(Table6[[#This Row],[7:00 π.μ.]:[3:00 μ.μ.]],\"*\")","v":7}]
[null,"Γιάννης Μ.",null,"γραφείο υποδοχής","γραφείο υποδοχής","γραφείο υποδοχής","γραφείο υποδοχής ","γραφείο υποδοχής","γραφείο υποδοχής","γραφείο υποδοχής",null,null,{"$f":"COUNTIF(Table6[[#This Row],[7:00 π.μ.]:[3:00 μ.μ.]],\"*\")","v":7}]
[null,"Σταύρος Π.",{"$nulls":9},"Ασθένεια",{"$f":"COUNTIF(Table6[[#This Row],[7:00 π.μ.]:[3:00 μ.μ.]],\"*\")","v":0}]
[null,"Ευαγγελία Α.",{"$nulls":5},"ταμίας","ταμίας","ταμίας","ταμίας",null,{"$f":"COUNTIF(Table6[[#This Row],[7:00 π.μ.]:[3:00 μ.μ.]],\"*\")","v":4}]
[]
[null,"ΚΥΡΙΑΚΗ","7:00 π.μ.","8:00 π.μ.","9:00 π.μ.","10:00 π.μ.","11:00 π.μ.","12:00 μ.μ.","1:00 μ.μ.","2:00 μ.μ","3:00 μ.μ.","Ασθένεια;","ΣΥΝΟΛΟ"]
[null,"Μαρία Φ.","διευθύντρια","διευθύντρια","διευθύντρια","διευθύντρια","διευθύντρια","διευθύντρια","διευθύντρια","διευθύντρια","διευθύντρια",null,{"$f":"COUNTIF(Table7[[#This Row],[7:00 π.μ.]:[3:00 μ.μ.]],\"*\")","v":9}]
[null,"Θωμάς Η.",null,"ταμίας","ταμίας","ταμίας","ταμίας",{"$nulls":5},{"$f":"COUNTIF(Table7[[#This Row],[7:00 π.μ.]:[3:00 μ.μ.]],\"*\")","v":4}]
[null,"Παναγιώτης Σ.",null,"γραφείο υποδοχής","γραφείο υποδοχής","γραφείο υποδοχής","γραφείο υποδοχής ","γραφείο υποδοχής","γραφείο υποδοχής","γραφείο υποδοχής",null,null,{"$f":"COUNTIF(Table7[[#This Row],[7:00 π.μ.]:[3:00 μ.μ.]],\"*\")","v":7}]
[null,"Γιάννης Μ.",null,"γραφείο υποδοχής","γραφείο υποδοχής","γραφείο υποδοχής","γραφείο υποδοχής ","γραφείο υποδοχής","γραφείο υποδοχής","γραφείο υποδοχής",null,null,{"$f":"COUNTIF(Table7[[#This Row],[7:00 π.μ.]:[3:00 μ.μ.]],\"*\")","v":7}]
[null,"Σταύρος Π.",{"$nulls":9},"Ασθένεια",{"$f":"COUNTIF(Table7[[#This Row],[7:00 π.μ.]:[3:00 μ.μ.]],\"*\")","v":0}]
[null,"Ευαγγελία Α.",{"$nulls":5},"ταμίας","ταμίας","ταμίας","ταμίας",null,{"$f":"COUNTIF(Table7[[#This Row],[7:00 π.μ.]:[3:00 μ.μ.]],\"*\")","v":4}]